[Event "*** Titled Tuesday Blitz"]
[Site "Chess.com"]
[Date "2019.11.05"]
[Round "8"]
[White "IvanRadivojevic"]
[Black "Zq1"]
[Result "1-0"]
[WhiteElo "2518"]
[BlackElo "2596"]
[TimeControl "180+2"]
[EndTime "14:55:54 PST"]
[Termination "IvanRadivojevic won by resignation"]

1. e4 {[%clk 0:03:01.9]} 1... c5 {[%clk 0:02:59.9]} 2. Nc3 {[%clk 0:03:02.7]}
2... g6 {[%clk 0:02:59.2]} 3. f4 {[%clk 0:02:57.8]} 3... Bg7 {[%clk 0:03:00.2]}
4. Nf3 {[%clk 0:02:59.2]} 4... Nc6 {[%clk 0:03:01.3]} 5. Bb5 {[%clk 0:03:00.1]}
5... Nd4 {[%clk 0:03:02.3]} 6. O-O {[%clk 0:03:01.3]} 6... a6 {[%clk 0:03:02]}
7. Bd3 {[%clk 0:03:01.6]} 7... d6 {[%clk 0:03:03]} 8. Nxd4 {[%clk 0:03:01.9]}
8... cxd4 {[%clk 0:03:03.7]} 9. Ne2 {[%clk 0:03:03]} 9... Nf6 {[%clk 0:03:04.4]}
10. b3 {[%clk 0:03:03.1]} 10... O-O {[%clk 0:03:00.2]} 11. Bb2 {[%clk 0:03:04]}
11... e5 {[%clk 0:03:01.2]} 12. c3 {[%clk 0:02:54.5]} 12... dxc3 {[%clk
0:02:57.7]} 13. Bxc3 {[%clk 0:02:48.7]} 13... d5 {[%clk 0:02:48.6]} 14. exd5
{[%clk 0:02:35.3]} 14... e4 {[%clk 0:02:38]} 15. Bc2 {[%clk 0:02:08.3]} 15...
Qxd5 {[%clk 0:02:34.5]} 16. Ng3 {[%clk 0:02:06.4]} 16... Re8 {[%clk 0:02:29.8]}
17. Qe1 {[%clk 0:01:57.9]} 17... Bd7 {[%clk 0:02:17.3]} 18. h3 {[%clk
0:01:39.4]} 18... Bc6 {[%clk 0:02:17.4]} 19. Qe3 {[%clk 0:01:33.2]} 19... h5
{[%clk 0:02:13.4]} 20. Rae1 {[%clk 0:01:18.1]} 20... h4 {[%clk 0:02:12.2]} 21.
Ne2 {[%clk 0:01:11.6]} 21... Bb5 {[%clk 0:02:04.5]} 22. a4 {[%clk 0:01:03.5]}
22... Bd3 {[%clk 0:02:03.3]} 23. Bd1 {[%clk 0:00:50.4]} 23... Rac8 {[%clk
0:01:48.3]} 24. Rf2 {[%clk 0:00:48.5]} 24... Nh5 {[%clk 0:01:36.1]} 25. Bxg7
{[%clk 0:00:45.1]} 25... Nxg7 {[%clk 0:01:37.1]} 26. Nc3 {[%clk 0:00:41.3]}
26... Qc5 {[%clk 0:01:27.2]} 27. Bg4 {[%clk 0:00:33.9]} 27... Qxe3 {[%clk
0:01:23.9]} 28. Rxe3 {[%clk 0:00:35.5]} 28... f5 {[%clk 0:01:24.9]} 29. Bd1
{[%clk 0:00:36.2]} 29... Red8 {[%clk 0:01:24]} 30. g3 {[%clk 0:00:34.9]} 30...
hxg3 {[%clk 0:01:23]} 31. Rxg3 {[%clk 0:00:36.8]} 31... Kf7 {[%clk 0:01:23.1]}
32. Rfg2 {[%clk 0:00:36]} 32... Rd6 {[%clk 0:01:18.9]} 33. b4 {[%clk 0:00:20.5]}
33... Rh8 {[%clk 0:01:11.2]} 34. Kh2 {[%clk 0:00:21.6]} 34... Rh4 {[%clk
0:01:09.5]} 35. Bb3+ {[%clk 0:00:22.4]} 35... Kf8 {[%clk 0:01:05.7]} 36. Rxg6
{[%clk 0:00:22.9]} 36... Rxg6 {[%clk 0:01:06.8]} 37. Rxg6 {[%clk 0:00:24.5]}
37... Rxf4 {[%clk 0:01:07.9]} 38. Rf6+ {[%clk 0:00:25.3]} 38... Ke8 {[%clk
0:01:06.8]} 39. Rb6 {[%clk 0:00:20.4]} 39... Rf2+ {[%clk 0:01:05.4]} 40. Kg3
{[%clk 0:00:21.2]} 40... Rxd2 {[%clk 0:01:02.8]} 41. Rxb7 {[%clk 0:00:22.4]}
41... Rb2 {[%clk 0:00:53]} 42. Bd5 {[%clk 0:00:19]} 42... Nh5+ {[%clk
0:00:50.4]} 43. Kh4 {[%clk 0:00:18.8]} 43... Nf4 {[%clk 0:00:51.4]} 44. Bc6+
{[%clk 0:00:18.5]} 44... Kf8 {[%clk 0:00:50.3]} 45. Kg5 {[%clk 0:00:19]} 45...
Rf2 {[%clk 0:00:28.4]} 46. b5 {[%clk 0:00:18.9]} 46... axb5 {[%clk 0:00:27.7]}
47. axb5 {[%clk 0:00:20.3]} 47... e3 {[%clk 0:00:28.2]} 48. b6 {[%clk
0:00:17.6]} 48... e2 {[%clk 0:00:28.6]} 49. Rb8+ {[%clk 0:00:18.7]} 49... Ke7
{[%clk 0:00:27.4]} 50. Re8+ {[%clk 0:00:19.9]} 50... Kd6 {[%clk 0:00:28.3]} 51.
b7 {[%clk 0:00:21.2]} 51... Nxh3+ {[%clk 0:00:24.8]} 52. Kf6 {[%clk 0:00:21.1]}
52... e1=Q {[%clk 0:00:21.4]} 53. Rxe1 {[%clk 0:00:20.5]} 53... Rb2 {[%clk
0:00:21]} 54. Nb5+ {[%clk 0:00:16.7]} 54... Kxc6 {[%clk 0:00:18.5]} 55. b8=Q
{[%clk 0:00:15.9]} 55... Rxb5 {[%clk 0:00:16.5]} 56. Re6+ {[%clk 0:00:15.2]}
56... Kd5 {[%clk 0:00:16]} 57. Qe5+ {[%clk 0:00:14.9]} 57... Kc4 {[%clk
0:00:16.8]} 58. Rc6+ {[%clk 0:00:15.8]} 1-0

[Event "*** Titled Tuesday Blitz"]
[Site "Chess.com"]
[Date "2019.11.05"]
[Round "8"]
[White "cukus"]
[Black "Marcus_Harvey"]
[Result "0-1"]
[WhiteElo "2457"]
[BlackElo "2634"]
[TimeControl "180+2"]
[EndTime "14:56:05 PST"]
[Termination "Marcus_Harvey won by resignation"]

1. e4 {[%clk 0:02:59.2]} 1... c6 {[%clk 0:02:58.1]} 2. d4 {[%clk 0:02:58]} 2...
d5 {[%clk 0:02:59.3]} 3. Nd2 {[%clk 0:02:59.3]} 3... dxe4 {[%clk 0:02:59.7]} 4.
Nxe4 {[%clk 0:03:01.2]} 4... Nf6 {[%clk 0:03:01.1]} 5. Nxf6+ {[%clk 0:03:01.6]}
5... exf6 {[%clk 0:03:03]} 6. c3 {[%clk 0:03:02.2]} 6... Bd6 {[%clk 0:03:03.7]}
7. Bd3 {[%clk 0:03:03.7]} 7... O-O {[%clk 0:03:05]} 8. Ne2 {[%clk 0:03:05]} 8...
Re8 {[%clk 0:03:06.2]} 9. O-O {[%clk 0:03:03.4]} 9... Nd7 {[%clk 0:03:07.1]} 10.
Bf4 {[%clk 0:02:58]} 10... Qc7 {[%clk 0:03:07.8]} 11. Bxd6 {[%clk 0:02:55.8]}
11... Qxd6 {[%clk 0:03:09.7]} 12. Qc2 {[%clk 0:02:55.1]} 12... Nf8 {[%clk
0:03:10.7]} 13. Rfe1 {[%clk 0:02:55.7]} 13... Bg4 {[%clk 0:03:09.1]} 14. Ng3
{[%clk 0:02:55.5]} 14... Ng6 {[%clk 0:03:00.8]} 15. h3 {[%clk 0:02:55]} 15...
Bd7 {[%clk 0:03:01.3]} 16. Bxg6 {[%clk 0:02:54.8]} 16... hxg6 {[%clk 0:03:01.5]}
17. Qd2 {[%clk 0:02:56]} 17... f5 {[%clk 0:03:01]} 18. Rxe8+ {[%clk 0:02:56.2]}
18... Rxe8 {[%clk 0:03:01.9]} 19. Re1 {[%clk 0:02:57.4]} 19... Re6 {[%clk
0:03:01.2]} 20. Rxe6 {[%clk 0:02:56.8]} 20... Qxe6 {[%clk 0:03:02.4]} 21. b3
{[%clk 0:02:54.4]} 21... Qd6 {[%clk 0:02:56]} 22. c4 {[%clk 0:02:43.3]} 22... b5
{[%clk 0:02:38.4]} 23. Ne2 {[%clk 0:02:43]} 23... bxc4 {[%clk 0:02:39]} 24. bxc4
{[%clk 0:02:44.9]} 24... Be6 {[%clk 0:02:38.1]} 25. Qc3 {[%clk 0:02:39.1]} 25...
g5 {[%clk 0:02:35.6]} 26. d5 {[%clk 0:02:29.4]} 26... cxd5 {[%clk 0:02:33.6]}
27. c5 {[%clk 0:02:30.7]} 27... Qa6 {[%clk 0:02:26.5]} 28. Nd4 {[%clk
0:02:27.1]} 28... Bc8 {[%clk 0:02:14.1]} 29. c6 {[%clk 0:02:25.8]} 29... Qxa2
{[%clk 0:02:11.9]} 30. Qe3 {[%clk 0:02:22.4]} 30... Qb1+ {[%clk 0:02:11.9]} 31.
Kh2 {[%clk 0:02:21.8]} 31... Qe4 {[%clk 0:02:12.9]} 32. Qxg5 {[%clk 0:02:05.6]}
32... f6 {[%clk 0:02:04]} 33. Qg6 {[%clk 0:01:57.6]} 33... a5 {[%clk 0:01:51.3]}
34. Nb5 {[%clk 0:01:42.3]} 34... a4 {[%clk 0:01:47]} 35. g3 {[%clk 0:01:39.8]}
35... Qe2 {[%clk 0:01:30.9]} 36. Kg1 {[%clk 0:01:22.6]} 36... d4 {[%clk
0:01:29.1]} 37. Nxd4 {[%clk 0:00:57]} 37... Qe1+ {[%clk 0:01:28.7]} 38. Kg2
{[%clk 0:00:48.1]} 38... Qe4+ {[%clk 0:01:28.2]} 39. Kh2 {[%clk 0:00:47.5]}
39... a3 {[%clk 0:01:28.2]} 40. c7 {[%clk 0:00:41.9]} 40... a2 {[%clk 0:01:28]}
41. Nb3 {[%clk 0:00:29.2]} 41... Bb7 {[%clk 0:01:21.1]} 42. f3 {[%clk 0:00:29]}
42... Qe2+ {[%clk 0:01:14.9]} 43. Kg1 {[%clk 0:00:29.8]} 43... Qe1+ {[%clk
0:01:16.1]} 44. Kg2 {[%clk 0:00:28.6]} 44... Qe2+ {[%clk 0:01:09.8]} 45. Kg1
{[%clk 0:00:29.3]} 45... Qe3+ {[%clk 0:01:11.2]} 46. Kf1 {[%clk 0:00:17.4]}
46... Qxf3+ {[%clk 0:01:12.1]} 47. Ke1 {[%clk 0:00:18]} 47... Qc3+ {[%clk
0:01:10.6]} 48. Kf2 {[%clk 0:00:15.4]} 48... Qc2+ {[%clk 0:01:10.1]} 49. Ke1
{[%clk 0:00:14]} 49... Qb1+ {[%clk 0:01:11]} 50. Kf2 {[%clk 0:00:13.4]} 50...
Qb2+ {[%clk 0:01:12.2]} 51. Ke1 {[%clk 0:00:09.5]} 51... a1=Q+ {[%clk
0:01:12.9]} 52. Nxa1 {[%clk 0:00:11]} 52... Qxa1+ {[%clk 0:01:14.5]} 53. Kd2
{[%clk 0:00:12.7]} 53... Qd4+ {[%clk 0:01:15.1]} 54. Ke1 {[%clk 0:00:07.6]}
54... Qe3+ {[%clk 0:01:12.3]} 55. Kd1 {[%clk 0:00:08.8]} 55... Bf3+ {[%clk
0:01:12.5]} 56. Kc2 {[%clk 0:00:10.2]} 56... Qc5+ {[%clk 0:01:13.6]} 57. Kd2
{[%clk 0:00:11]} 57... Qxc7 {[%clk 0:01:14.1]} 58. Qe8+ {[%clk 0:00:11.1]} 58...
Kh7 {[%clk 0:01:15.1]} 59. Qe3 {[%clk 0:00:06.7]} 59... Qa5+ {[%clk 0:01:15.6]}
60. Kc2 {[%clk 0:00:06.9]} 60... Be4+ {[%clk 0:01:17]} 61. Kb3 {[%clk
0:00:08.5]} 61... Qb5+ {[%clk 0:01:18]} 62. Kc3 {[%clk 0:00:08.1]} 62... Qc6+
{[%clk 0:01:17.2]} 63. Kd2 {[%clk 0:00:09.1]} 63... Qd5+ {[%clk 0:01:16.7]} 64.
Ke1 {[%clk 0:00:09.6]} 64... Qa5+ {[%clk 0:01:17]} 65. Kf2 {[%clk 0:00:10.3]}
65... Qa2+ {[%clk 0:01:16]} 66. Ke1 {[%clk 0:00:11.7]} 66... Qb1+ {[%clk
0:01:16.2]} 67. Kf2 {[%clk 0:00:13]} 67... Qc2+ {[%clk 0:01:17.1]} 68. Ke1
{[%clk 0:00:14]} 68... Qd3 {[%clk 0:01:17.4]} 69. Qf4 {[%clk 0:00:15.4]} 69...
Qc3+ {[%clk 0:01:16]} 70. Kf2 {[%clk 0:00:16.3]} 70... Qd4+ {[%clk 0:01:14.5]}
71. Ke1 {[%clk 0:00:16.7]} 71... g5 {[%clk 0:01:12.2]} 72. Qc7+ {[%clk
0:00:16.9]} 72... Kg6 {[%clk 0:01:13.6]} 73. Qb8 {[%clk 0:00:17.4]} 73... Qe3+
{[%clk 0:01:14.6]} 74. Kd1 {[%clk 0:00:17.9]} 74... Bf3+ {[%clk 0:01:11.9]} 75.
Kc2 {[%clk 0:00:19]} 75... Qe2+ {[%clk 0:01:12.3]} 76. Kc3 {[%clk 0:00:20.1]}
76... Qe5+ {[%clk 0:01:09]} 77. Qxe5 {[%clk 0:00:19.5]} 77... fxe5 {[%clk
0:01:10.9]} 0-1

[Event "*** Titled Tuesday Blitz"]
[Site "Chess.com"]
[Date "2019.11.05"]
[Round "8"]
[White "Gabrielian_Artur"]
[Black "vinniethepooh"]
[Result "1-0"]
[WhiteElo "2828"]
[BlackElo "2694"]
[TimeControl "180+2"]
[EndTime "14:56:19 PST"]
[Termination "Gabrielian_Artur won by resignation"]

1. e4 {[%clk 0:03:01.7]} 1... c5 {[%clk 0:02:59.7]} 2. Nc3 {[%clk 0:03:02.1]}
2... d6 {[%clk 0:02:56.7]} 3. d4 {[%clk 0:03:02.8]} 3... cxd4 {[%clk 0:02:58.6]}
4. Qxd4 {[%clk 0:03:04.3]} 4... Nc6 {[%clk 0:02:59.8]} 5. Bb5 {[%clk 0:03:05.4]}
5... Bd7 {[%clk 0:02:59.1]} 6. Bxc6 {[%clk 0:03:06.1]} 6... Bxc6 {[%clk
0:03:01]} 7. Nf3 {[%clk 0:03:07.4]} 7... Nf6 {[%clk 0:03:02.6]} 8. Bg5 {[%clk
0:03:08]} 8... e6 {[%clk 0:03:04.1]} 9. O-O-O {[%clk 0:03:08.8]} 9... Be7 {[%clk
0:03:05.6]} 10. Rhe1 {[%clk 0:03:09.7]} 10... O-O {[%clk 0:03:06.4]} 11. Qd3
{[%clk 0:03:09.7]} 11... Qa5 {[%clk 0:03:04.3]} 12. Kb1 {[%clk 0:03:04.3]} 12...
h6 {[%clk 0:02:52.1]} 13. Bd2 {[%clk 0:03:00.7]} 13... Qa6 {[%clk 0:02:50.3]}
14. Qxa6 {[%clk 0:02:57]} 14... bxa6 {[%clk 0:02:52.2]} 15. Nd4 {[%clk
0:02:57.8]} 15... Rfc8 {[%clk 0:02:53.2]} 16. Nxc6 {[%clk 0:02:57.8]} 16... Rxc6
{[%clk 0:02:55.1]} 17. f3 {[%clk 0:02:57.3]} 17... Rb8 {[%clk 0:02:54.9]} 18. b3
{[%clk 0:02:57.9]} 18... Nd7 {[%clk 0:02:51.1]} 19. Ne2 {[%clk 0:02:55.1]} 19...
Bf6 {[%clk 0:02:40.7]} 20. Bf4 {[%clk 0:02:50.6]} 20... Be5 {[%clk 0:02:40]} 21.
Bxe5 {[%clk 0:02:51.1]} 21... Nxe5 {[%clk 0:02:41.9]} 22. Rd4 {[%clk 0:02:40.5]}
22... Rbc8 {[%clk 0:02:35.3]} 23. c4 {[%clk 0:02:38.7]} 23... Kf8 {[%clk
0:02:31.9]} 24. Red1 {[%clk 0:02:38]} 24... Ke7 {[%clk 0:02:33.4]} 25. Nc3
{[%clk 0:02:21]} 25... g5 {[%clk 0:02:19.3]} 26. Kb2 {[%clk 0:02:20.1]} 26...
Rb8 {[%clk 0:02:14.8]} 27. Kc2 {[%clk 0:02:20.6]} 27... Rbc8 {[%clk 0:02:14.9]}
28. R4d2 {[%clk 0:02:14.1]} 28... h5 {[%clk 0:02:07.1]} 29. Ne2 {[%clk
0:02:12.4]} 29... h4 {[%clk 0:02:06.2]} 30. Nd4 {[%clk 0:02:08]} 30... Rb6
{[%clk 0:02:07.1]} 31. g3 {[%clk 0:02:06]} 31... Ng6 {[%clk 0:02:01.9]} 32. Re1
{[%clk 0:01:58.8]} 32... hxg3 {[%clk 0:01:55.8]} 33. hxg3 {[%clk 0:01:59.6]}
33... Rh8 {[%clk 0:01:57.7]} 34. Rf2 {[%clk 0:01:46]} 34... Rh3 {[%clk
0:01:55.1]} 35. Rg1 {[%clk 0:01:42]} 35... Ne5 {[%clk 0:01:53.5]} 36. f4 {[%clk
0:01:30.9]} 36... Ng4 {[%clk 0:01:53.1]} 37. Re2 {[%clk 0:01:27.7]} 37... Kd7
{[%clk 0:01:24.5]} 38. a4 {[%clk 0:01:23.3]} 38... Rb8 {[%clk 0:01:24.3]} 39. f5
{[%clk 0:01:22.8]} 39... Rbh8 {[%clk 0:01:16.2]} 40. fxe6+ {[%clk 0:01:23]}
40... fxe6 {[%clk 0:01:18.1]} 41. Nf3 {[%clk 0:01:18.4]} 41... R3h5 {[%clk
0:01:10.8]} 42. Rd1 {[%clk 0:01:17.1]} 42... Ke7 {[%clk 0:01:04.8]} 43. e5
{[%clk 0:01:06.1]} 43... dxe5 {[%clk 0:01:05.5]} 44. Nxe5 {[%clk 0:00:58]} 44...
Rh2 {[%clk 0:01:06.3]} 45. Rd7+ {[%clk 0:00:51.9]} 45... Ke8 {[%clk 0:00:58.6]}
46. Rdd2 {[%clk 0:00:52]} 46... Rxe2 {[%clk 0:00:36.9]} 47. Rxe2 {[%clk
0:00:52.8]} 47... Nxe5 {[%clk 0:00:26.6]} 48. Rxe5 {[%clk 0:00:53.2]} 48... Ke7
{[%clk 0:00:28.5]} 49. Rxg5 {[%clk 0:00:53.2]} 49... Rh2+ {[%clk 0:00:23.4]} 50.
Kc3 {[%clk 0:00:53.3]} 50... Rg2 {[%clk 0:00:23.1]} 51. Rg7+ {[%clk 0:00:50.5]}
51... Kf6 {[%clk 0:00:23.1]} 52. Rxa7 {[%clk 0:00:51.5]} 52... Rxg3+ {[%clk
0:00:24.8]} 53. Kb4 {[%clk 0:00:53]} 53... e5 {[%clk 0:00:24.6]} 54. Rxa6+
{[%clk 0:00:54.3]} 54... Kf5 {[%clk 0:00:26]} 55. Ra8 {[%clk 0:00:55.4]} 55...
e4 {[%clk 0:00:27.5]} 56. Re8 {[%clk 0:00:53.5]} 56... e3 {[%clk 0:00:24.8]} 57.
Kc5 {[%clk 0:00:49.8]} 57... Kf4 {[%clk 0:00:26.3]} 58. Kd4 {[%clk 0:00:50.3]}
58... e2 {[%clk 0:00:08.1]} 59. Rxe2 {[%clk 0:00:49.3]} 59... Rxb3 {[%clk
0:00:09.7]} 60. c5 {[%clk 0:00:48.1]} 60... Ra3 {[%clk 0:00:10.4]} 61. c6 {[%clk
0:00:46.9]} 61... Rxa4+ {[%clk 0:00:11.8]} 62. Kd5 {[%clk 0:00:48.1]} 62... Ra5+
{[%clk 0:00:10.8]} 63. Kd6 {[%clk 0:00:49.2]} 63... Ra3 {[%clk 0:00:10.1]} 64.
c7 {[%clk 0:00:45.6]} 64... Rd3+ {[%clk 0:00:10.6]} 65. Kc6 {[%clk 0:00:46.6]}
65... Rc3+ {[%clk 0:00:12.2]} 66. Kd7 {[%clk 0:00:47.2]} 66... Rd3+ {[%clk
0:00:13.7]} 67. Kc8 {[%clk 0:00:48.4]} 67... Kf5 {[%clk 0:00:11.9]} 68. Rb2
{[%clk 0:00:49.1]} 1-0

[Event "*** Titled Tuesday Blitz"]
[Site "Chess.com"]
[Date "2019.11.05"]
[Round "8"]
[White "codapbg94"]
[Black "davigator"]
[Result "1-0"]
[WhiteElo "2163"]
[BlackElo "2284"]
[TimeControl "180+2"]
[EndTime "14:56:20 PST"]
[Termination "codapbg94 won by resignation"]

1. e4 {[%clk 0:03:01.9]} 1... c5 {[%clk 0:02:59.9]} 2. Nf3 {[%clk 0:03:02.7]}
2... Nc6 {[%clk 0:02:57.7]} 3. Bb5 {[%clk 0:03:04.1]} 3... g6 {[%clk 0:02:57.6]}
4. Bxc6 {[%clk 0:03:04]} 4... bxc6 {[%clk 0:02:59.5]} 5. O-O {[%clk 0:03:00.9]}
5... Bg7 {[%clk 0:03:00.7]} 6. c3 {[%clk 0:02:59]} 6... Nf6 {[%clk 0:03:00.7]}
7. e5 {[%clk 0:02:52.4]} 7... Nd5 {[%clk 0:03:00.9]} 8. d4 {[%clk 0:02:44.7]}
8... cxd4 {[%clk 0:03:01.1]} 9. cxd4 {[%clk 0:02:45.9]} 9... O-O {[%clk
0:03:01.9]} 10. Re1 {[%clk 0:02:46.2]} 10... d6 {[%clk 0:03:02.7]} 11. h3 {[%clk
0:02:46.8]} 11... Rb8 {[%clk 0:03:01.8]} 12. b3 {[%clk 0:02:42.9]} 12... a5
{[%clk 0:02:56.6]} 13. Bd2 {[%clk 0:02:09.6]} 13... Bf5 {[%clk 0:02:52.6]} 14.
Nc3 {[%clk 0:02:09.3]} 14... Nb4 {[%clk 0:02:52.5]} 15. Nh4 {[%clk 0:01:56.8]}
15... Bc2 {[%clk 0:02:46.8]} 16. Qc1 {[%clk 0:01:44.7]} 16... e6 {[%clk
0:02:35.7]} 17. a3 {[%clk 0:01:40.1]} 17... Nd3 {[%clk 0:02:33.8]} 18. Qxc2
{[%clk 0:01:29.9]} 18... Nxe1 {[%clk 0:02:34.5]} 19. Qe4 {[%clk 0:01:14.2]}
19... dxe5 {[%clk 0:02:27.6]} 20. Bxe1 {[%clk 0:01:04.4]} 20... f5 {[%clk
0:02:27.8]} 21. Qxc6 {[%clk 0:00:58.8]} 21... Qxh4 {[%clk 0:02:27.7]} 22. Qxe6+
{[%clk 0:00:59.7]} 22... Kh8 {[%clk 0:02:28.5]} 23. dxe5 {[%clk 0:00:54]} 23...
Qd4 {[%clk 0:02:22.6]} 24. Rd1 {[%clk 0:00:50.2]} 24... Qxe5 {[%clk 0:02:23.1]}
25. Qxe5 {[%clk 0:00:50.1]} 25... Bxe5 {[%clk 0:02:23.5]} 26. Rd5 {[%clk
0:00:51.3]} 26... Bg7 {[%clk 0:02:21.9]} 27. Rxa5 {[%clk 0:00:43.2]} 27... Rxb3
{[%clk 0:02:22]} 28. Nd5 {[%clk 0:00:36.7]} 28... Re8 {[%clk 0:02:22.1]} 29. Bb4
{[%clk 0:00:35.5]} 29... Be5 {[%clk 0:02:18.3]} 30. f4 {[%clk 0:00:33.1]} 30...
Bd4+ {[%clk 0:02:15.8]} 31. Kh2 {[%clk 0:00:33.3]} 31... Rb2 {[%clk 0:02:09.7]}
32. Nc7 {[%clk 0:00:19.2]} 32... Ree2 {[%clk 0:01:55.1]} 33. Ra8+ {[%clk
0:00:15.8]} 33... Kg7 {[%clk 0:01:55.9]} 34. Ne6+ {[%clk 0:00:11.4]} 34... Kf7
{[%clk 0:01:56.7]} 35. Nxd4 {[%clk 0:00:10.4]} 35... Rxg2+ {[%clk 0:01:57.9]}
36. Kh1 {[%clk 0:00:11.3]} 36... Rgf2 {[%clk 0:01:57.8]} 37. Kg1 {[%clk
0:00:11.4]} 37... Rxf4 {[%clk 0:01:56.6]} 38. Nc6 {[%clk 0:00:12.2]} 38... Re4
{[%clk 0:01:54.3]} 39. Ra7+ {[%clk 0:00:12.7]} 39... Ke8 {[%clk 0:01:50.4]} 40.
Rxh7 {[%clk 0:00:12.4]} 40... Rc4 {[%clk 0:01:48.6]} 41. Rh8+ {[%clk 0:00:06.6]}
41... Kf7 {[%clk 0:01:49]} 42. Ne5+ {[%clk 0:00:04.5]} 42... Kg7 {[%clk
0:01:49.8]} 43. Nxc4 {[%clk 0:00:06.4]} 43... Rb1+ {[%clk 0:01:50.5]} 44. Kg2
{[%clk 0:00:06.4]} 44... Kxh8 {[%clk 0:01:51.8]} 45. Kg3 {[%clk 0:00:05.1]}
45... Kg7 {[%clk 0:01:52.4]} 46. Ne5 {[%clk 0:00:05.9]} 46... Kf6 {[%clk
0:01:53]} 47. Nc6 {[%clk 0:00:06.7]} 47... g5 {[%clk 0:01:53.5]} 48. a4 {[%clk
0:00:07.5]} 48... Rb3+ {[%clk 0:01:53.7]} 49. Kg2 {[%clk 0:00:07]} 49... Rb2+
{[%clk 0:01:51]} 50. Kf3 {[%clk 0:00:07.1]} 50... Rb3+ {[%clk 0:01:50.8]} 51.
Kg2 {[%clk 0:00:07.2]} 51... f4 {[%clk 0:01:51.6]} 52. a5 {[%clk 0:00:07.3]}
52... Rb2+ {[%clk 0:01:52.4]} 53. Kf3 {[%clk 0:00:07]} 53... Ra2 {[%clk
0:01:53.5]} 54. Nb8 {[%clk 0:00:05.9]} 54... Kf5 {[%clk 0:01:53.5]} 55. a6
{[%clk 0:00:06.6]} 55... Ra4 {[%clk 0:01:50.6]} 56. Bc5 {[%clk 0:00:06.3]} 56...
Ra5 {[%clk 0:01:44.8]} 57. a7 {[%clk 0:00:05.6]} 57... Ra1 {[%clk 0:01:43.7]}
58. Bb6 {[%clk 0:00:05.4]} 58... Ra3+ {[%clk 0:01:43.8]} 59. Kf2 {[%clk
0:00:05.5]} 59... Ke4 {[%clk 0:01:45]} 60. Nc6 {[%clk 0:00:06.4]} 60... Ra2+
{[%clk 0:01:45.5]} 61. Ke1 {[%clk 0:00:06.6]} 61... f3 {[%clk 0:01:45.8]} 62.
Na5 {[%clk 0:00:07.1]} 62... f2+ {[%clk 0:01:46.8]} 63. Kf1 {[%clk 0:00:07.8]}
63... Kf3 {[%clk 0:01:47.9]} 64. a8=Q+ {[%clk 0:00:05.8]} 64... Kg3 {[%clk
0:01:46.5]} 65. Bxf2+ {[%clk 0:00:06.5]} 65... Rxf2+ {[%clk 0:01:46.7]} 66. Kg1
{[%clk 0:00:08.4]} 66... Rf3 {[%clk 0:01:42.6]} 67. Qc8 {[%clk 0:00:09.1]} 67...
Rf4 {[%clk 0:01:42.2]} 68. Nb3 {[%clk 0:00:08.7]} 68... Rb4 {[%clk 0:01:42]} 69.
Nc1 {[%clk 0:00:04.4]} 69... Rf4 {[%clk 0:01:40.7]} 70. Qd7 {[%clk 0:00:04.4]}
70... Re4 {[%clk 0:01:40.5]} 71. Qd1 {[%clk 0:00:03.8]} 71... Kxh3 {[%clk
0:01:38.5]} 72. Qf3+ {[%clk 0:00:03.6]} 72... Kh4 {[%clk 0:01:38.4]} 73. Qxe4+
{[%clk 0:00:05.5]} 73... g4 {[%clk 0:01:39.4]} 74. Qd5 {[%clk 0:00:07.4]} 74...
Kh3 {[%clk 0:01:40]} 75. Qe4 {[%clk 0:00:07.7]} 75... Kh4 {[%clk 0:01:40.1]} 76.
Qe3 {[%clk 0:00:09.1]} 76... g3 {[%clk 0:01:40.4]} 77. Kg2 {[%clk 0:00:11]}
77... Kg4 {[%clk 0:01:41]} 78. Qxg3+ {[%clk 0:00:12.9]} 78... Kf5 {[%clk
0:01:41.7]} 79. Qf3+ {[%clk 0:00:13.9]} 79... Ke5 {[%clk 0:01:42.4]} 80. Qg4
{[%clk 0:00:14.9]} 80... Kd5 {[%clk 0:01:42.9]} 81. Qf4 {[%clk 0:00:16.2]} 81...
Kc5 {[%clk 0:01:43.6]} 82. Qe4 {[%clk 0:00:17.6]} 82... Kb5 {[%clk 0:01:44.4]}
83. Qd4 {[%clk 0:00:17.5]} 83... Kc6 {[%clk 0:01:45.1]} 84. Qe5 {[%clk
0:00:18.2]} 84... Kb6 {[%clk 0:01:45.8]} 85. Qd5 {[%clk 0:00:19.5]} 85... Kc7
{[%clk 0:01:46.6]} 86. Qe6 {[%clk 0:00:20.3]} 86... Kb7 {[%clk 0:01:47]} 87. Qd6
{[%clk 0:00:21.6]} 87... Ka8 {[%clk 0:01:47.8]} 88. Qb4 {[%clk 0:00:21.9]} 88...
Ka7 {[%clk 0:01:48]} 89. Kf3 {[%clk 0:00:23.8]} 89... Ka8 {[%clk 0:01:49.1]} 90.
Ke4 {[%clk 0:00:25.7]} 1-0